fUST/lending_fUST_20251129
["ID","MTS","AMOUNT","RATE_DAILY","PERIOD"]
[395096294,1764424245388,-1134.772266,0.00013698,2]
[395096295,1764424245397,-1134.772266,0.00013698,2]
[395096296,1764424245406,-1134.772266,0.00013698,2]
[395096297,1764424245415,-1134.772266,0.00013698,2]
[395096298,1764424245424,-1134.772266,0.00013698,2]
[395096299,1764424245433,-1134.772266,0.00013698,2]
[395096300,1764424245442,-1134.772266,0.00013698,2]
[395096301,1764424245451,-1134.772266,0.00013698,2]
[395096302,1764424245460,-1134.772266,0.00013698,2]
[395096303,1764424245469,-500.0,0.00013698,2]
[395096304,1764424245479,-1134.772266,0.00013698,2]
[395096305,1764424245493,-1134.772266,0.00013698,2]
[395096306,1764424245502,-1134.772266,0.00013698,2]
[395096307,1764424245511,-1134.772266,0.00013698,2]
[395096308,1764424245520,-990.53,0.00013698,2]
[395096309,1764424245529,-1134.772266,0.00013698,2]
[395096310,1764424245538,-1134.772266,0.00013698,2]
[395096311,1764424245547,-1134.772266,0.00013698,2]
[395096312,1764424245556,-1134.772263,0.00013698,2]
[395096313,1764424245565,-1141.713357,0.00013698,2]
[395096314,1764424245573,-500.0,0.00013698,2]
[395096315,1764424245582,-1141.713357,0.00013698,2]
[395096316,1764424245592,-1141.713357,0.00013698,2]
[395096317,1764424245601,-1141.713357,0.00013698,2]
[395096318,1764424245610,-1141.713357,0.00013698,2]
[395096319,1764424245629,-1141.713357,0.00013698,2]
[395096320,1764424245639,-500.0,0.00013698,2]
[395096321,1764424245649,-1141.713357,0.00013698,2]
[395096322,1764424245658,-1141.713357,0.00013698,2]
[395096323,1764424245668,-1141.713357,0.00013698,2]
[395096324,1764424245677,-1141.713357,0.00013698,2]
[395096325,1764424245686,-1141.713357,0.00013698,2]
[395096326,1764424245697,-1141.713357,0.00013698,2]
[395096327,1764424245706,-1141.713357,0.00013698,2]
[395096328,1764424245716,-1141.713357,0.00013698,2]
[395096329,1764424245725,-1141.713357,0.00013698,2]
[395096330,1764424245734,-1141.713357,0.00013698,2]
[395096331,1764424245744,-1141.713357,0.00013698,2]
[395096332,1764424245754,-1141.713357,0.00013698,2]
[395096333,1764424245763,-1141.713357,0.00013698,2]
[395096334,1764424245772,-500.0,0.00013698,2]
[395096335,1764424245781,-1141.713348,0.00013698,2]
[395096336,1764424245792,-778.35,0.00013698,2]
[395096337,1764424245801,-500.0,0.00013698,2]
[395096338,1764424245810,-500.0,0.00013698,2]
[395096339,1764424245820,-500.0,0.00013698,2]
[395096340,1764424245829,-500.0,0.00013698,2]
[395096341,1764424245839,-500.0,0.00013698,2]
[395096342,1764424245848,-500.0,0.00013698,2]
[395096343,1764424245858,-500.0,0.00013698,2]
[395096344,1764424245867,-823.76,0.00013698,2]
[395096345,1764424245876,-500.0,0.00013698,2]
[395096346,1764424245886,-500.0,0.00013698,2]
[395096347,1764424245895,-500.0,0.00013698,2]
[395096348,1764424245904,-500.0,0.00013698,2]
[395096349,1764424245914,-500.0,0.00013698,2]
[395096350,1764424245923,-500.0,0.00013698,2]
[395096351,1764424245932,-151.0,0.00013698,2]
[395096352,1764424245942,-500.0,0.00013698,2]
[395096353,1764424245954,-151.0,0.00013698,2]
[395096354,1764424245966,-500.0,0.00013698,2]
[395096355,1764424245976,-2800.32,0.00013698,2]
[395096356,1764424245985,-151.0,0.00013698,2]
[395096357,1764424245994,-500.0,0.00013698,2]
[395096358,1764424246004,-151.0,0.00013698,2]
[395096359,1764424246013,-500.0,0.00013698,2]
[395096360,1764424246022,-500.0,0.00013698,2]
[395096361,1764424246032,-151.0,0.00013698,2]
[395096362,1764424246043,-500.0,0.00013698,2]
[395096364,1764424246052,-151.0,0.00013698,2]
[395096366,1764424246061,-500.0,0.00013698,2]
[395096367,1764424246070,-500.0,0.00013698,2]
[395096368,1764424246079,-500.0,0.00013698,2]
[395096369,1764424246088,-500.0,0.00013698,2]
[395096370,1764424246097,-6008.98,0.00013698,2]
[395096371,1764424246107,-151.0,0.00013698,2]
[395096372,1764424246115,-151.0,0.00013698,2]
[395096373,1764424246125,-151.0,0.00013698,2]
[395096374,1764424246138,-151.0,0.00013698,2]
[395096375,1764424246148,-151.0,0.00013698,2]
[395096376,1764424246157,-526.07,0.00013698,2]
[395096377,1764424246166,-151.0,0.00013698,2]
[395096378,1764424246176,-151.0,0.00013698,2]
[395096379,1764424246184,-151.0,0.00013698,2]
[395096380,1764424246194,-152.964153,0.00013698,2]
[395096381,1764424246204,-1559.52,0.00013698,2]
[395096382,1764424246213,-500.0,0.00013698,2]
[395096383,1764424246222,-501.02807494,0.00013698,2]
[395096384,1764424246231,-500.0,0.00013698,2]
[395096385,1764424246240,-1514.35,0.00013698,2]
[395096386,1764424246250,-500.0,0.00013698,2]
[395096387,1764424246259,-176.366089,0.00013698,2]
[395096388,1764424246269,-176.366089,0.00013698,2]
[395096389,1764424246277,-176.366089,0.00013698,2]
[395096390,1764424246286,-176.366089,0.00013698,2]
[395096391,1764424246295,-176.366089,0.00013698,2]
[395096392,1764424246304,-176.366089,0.00013698,2]
[395096393,1764424246313,-1934.44,0.00013698,2]
[395096394,1764424246322,-176.366089,0.00013698,2]
[395096395,1764424246331,-176.366089,0.00013698,2]
[395096396,1764424246340,-176.366089,0.00013698,2]
[395096397,1764424246349,-176.366089,0.00013698,2]
[395096398,1764424246359,-176.366089,0.00013698,2]
[395096399,1764424246368,-176.366089,0.00013698,2]
[395096400,1764424246377,-176.366089,0.00013698,2]
[395096401,1764424246388,-176.366089,0.00013698,2]
[395096402,1764424246397,-797.75,0.00013698,2]
[395096403,1764424246406,-176.366089,0.00013698,2]
[395096404,1764424246416,-176.366089,0.00013698,2]
[395096405,1764424246425,-500.0,0.00013698,2]
[395096406,1764424246434,-176.366089,0.00013698,2]
[395096407,1764424246443,-176.366089,0.00013698,2]
[395096408,1764424246452,-176.366089,0.00013698,2]
[395096409,1764424246462,-151.0,0.00013698,2]
[395096410,1764424246474,-176.366085,0.00013698,2]
[395096411,1764424246483,-151.0,0.00013698,2]
[395096412,1764424246493,-151.0,0.00013698,2]
[395096413,1764424246502,-151.0,0.00013698,2]
[395096414,1764424246512,-151.0,0.00013698,2]
[395096415,1764424246521,-500.0,0.00013698,2]
[395096416,1764424246530,-151.0,0.00013698,2]
[395096417,1764424246539,-151.0,0.00013698,2]
[395096418,1764424246548,-151.0,0.00013698,2]
[395096419,1764424246557,-151.0,0.00013698,2]
[395096420,1764424246566,-232.272033,0.00013698,2]
[395096421,1764424246576,-226.300731,0.00013698,2]
[395096422,1764424246585,-534.33017262,0.00013698,2]
[395096423,1764424246597,-500.67790032,0.00013698,2]
[395096424,1764424246606,-500.0,0.00013698,2]
[395096425,1764424246615,-500.0,0.00013698,2]
[395096426,1764424246624,-522.61,0.00013698,2]
[395096427,1764424246634,-598.61,0.00013698,2]
[395096428,1764424246643,-500.0,0.00013698,2]
[395096429,1764424246653,-500.0,0.00013698,2]
[395096430,1764424246662,-834.53,0.00013698,2]
[395096431,1764424246671,-1099.74,0.00013698,2]
[395096432,1764424246680,-500.0,0.00013698,2]
[395096433,1764424246689,-151.0,0.00013698,2]
[395096434,1764424246699,-152.767179,0.00013698,2]
[395096435,1764424246709,-151.0,0.00013698,2]
[395096436,1764424246718,-151.0,0.00013698,2]
[395096437,1764424246727,-151.0,0.00013698,2]
[395096438,1764424246736,-151.0,0.00013698,2]
[395096439,1764424246746,-151.0,0.00013698,2]
[395096440,1764424246755,-500.0,0.00013698,2]
[395096441,1764424246765,-500.0,0.00013698,2]
[395096442,1764424246774,-151.0,0.00013698,2]
[395096443,1764424246784,-151.0,0.00013698,2]
[395096444,1764424246793,-500.0,0.00013698,2]
[395096445,1764424246805,-500.0,0.00013698,2]
[395096446,1764424246814,-500.0,0.00013698,2]
[395096447,1764424246824,-500.0,0.00013698,2]
[395096448,1764424246834,-500.0,0.00013698,2]
[395096449,1764424247046,-500.0,0.00013698,2]
[395096450,1764424247055,-500.0,0.00013698,2]
[395096451,1764424247065,-500.0,0.00013698,2]
[395096452,1764424247075,-500.0,0.00013698,2]
[395096453,1764424247084,-500.0,0.00013698,2]
[395096454,1764424247093,-500.0,0.00013698,2]
[395096455,1764424247102,-151.0,0.00013698,2]
[395096456,1764424247112,-500.0,0.00013698,2]
[395096457,1764424247121,-151.0,0.00013698,2]
[395096458,1764424247130,-500.0,0.00013698,2]
[395096459,1764424247138,-151.0,0.00013698,2]
[395096460,1764424247147,-500.0,0.00013698,2]
[395096461,1764424247156,-500.0,0.00013698,2]
[395096462,1764424247165,-2405.03,0.00013698,2]
[395096463,1764424247174,-151.0,0.00013698,2]
[395096464,1764424247183,-500.0,0.00013698,2]
[395096465,1764424247193,-171.041133,0.00013698,2]
[395096466,1764424247201,-500.0,0.00013698,2]
[395096467,1764424247211,-151.0,0.00013698,2]
[395096468,1764424247220,-39763.36,0.00013698,2]
[395096469,1764424247229,-171.041133,0.00013698,2]
[395096470,1764424247239,-500.0,0.00013698,2]
[395096471,1764424247248,-192.105425,0.00013698,2]
[395096472,1764424247256,-39763.36,0.00013698,2]
[395096473,1764424247265,-500.0,0.00013698,2]
[395096474,1764424247274,-171.041133,0.00013698,2]
[395096475,1764424247283,-500.0,0.00013698,2]
[395096476,1764424247292,-22205.9568879,0.00013698,2]
[395096477,1764424247924,-5946.12894685,0.00013698,2]
[395096478,1764424248919,-802.84844993,0.00013698,2]
[395096479,1764424248931,-529.99999998,0.00013698,2]
[395096480,1764424248942,-10278.42571534,0.00013698,2]
[395096481,1764424248951,-500.0,0.00013698,2]
[395096482,1764424248966,-171.041133,0.00013698,2]
[395096483,1764424248975,-25035.13832154,0.00013698,2]
[395096484,1764424248987,-14728.22167846,0.00013698,2]
[395096485,1764424248996,-500.0,0.00013698,2]
[395096486,1764424249006,-29826.16416358,0.00013698,2]
[395096487,1764424249017,-3101.51775169,0.00013698,2]
[395097689,1764424358278,-365.0,0.00021918,120]
[395097690,1764424358777,-135.0,0.00021918,120]
[395097691,1764424358804,-39.78,0.0002193,120]
[395097807,1764425026833,-154.22,0.0002193,120]
[395097808,1764425026855,-169.78,0.0002193,120]
[395097809,1764425027127,-1.22,0.0002193,120]
[395097810,1764425027148,-171.68,0.0002197,120]
[395097811,1764425027168,-150.5,0.0002198,120]
[395097812,1764425027190,-27.38,0.0002199,120]
[395097870,1764425226125,-631.42598626,8.807e-05,2]
[395097922,1764425352114,-158.27639846,8.907e-05,2]
[395097923,1764425352133,-633.29614802,8.907e-05,2]
[395097924,1764425352152,-221.10128838,9.009e-05,2]
[395097925,1764425352171,-173.98257153,9.111e-05,2]
[395097969,1764425431646,-44.42293424,9.111e-05,2]
[395097970,1764425431655,-260.89952028,0.00011009,2]
[395097971,1764425431664,-1200.0,0.00011715,2]
[395097972,1764425431673,-300.0,0.00011716,2]
[395097973,1764425431682,-300.0,0.00011716,2]
[395097974,1764425431691,-300.0,0.00011716,2]
[395097975,1764425431701,-300.0,0.00011716,2]
[395097976,1764425431710,-571.0,0.00011716,2]
[395097977,1764425431719,-150.0,0.00011717,2]
[395097978,1764425431728,-150.072,0.00011717,2]
[395097979,1764425431737,-630.0,0.00011717,2]
[395097981,1764425431746,-990.0,0.00011717,2]
[395097983,1764425431755,-414.0,0.00011717,2]
[395097985,1764425431764,-15817.33256411,0.00011717,2]
[395097986,1764425431773,-173.91901986,0.00012082,2]
[395097987,1764425431783,-500.0,0.00012082,2]
[395097988,1764425431792,-500.0,0.00012082,2]
[395097990,1764425431801,-395.08246641,0.00012082,2]
[395097992,1764425431810,-999.0,0.00012083,2]
[395097994,1764425431820,-157.09,0.0001212,2]
[395097995,1764425431829,-157.09,0.0001232,2]
[395097997,1764425431839,-157.09,0.0001252,2]
[395097998,1764425431847,-420.0,0.00012865,2]
[395097999,1764425431857,-187.78006525,0.00012942,2]
[395098001,1764425431866,-19486.36667398,0.00012945,2]
[395098003,1764425431875,-300.69775219,0.00013009,2]
[395098005,1764425431884,-15193.22130114,0.00013026,2]
[395098007,1764425431896,-1247.14197923,0.00013026,2]
[395098009,1764425431907,-1326.0,0.00013026,2]
[395098013,1764425431933,-45845.82732344,0.00013026,2]
[395098082,1764425437715,-1664.24520114,0.00013026,2]
[395098084,1764425437726,-944.52741498,0.00013026,2]
[395098090,1764425437773,-81198.29580253,0.00013026,2]
[395098093,1764425437784,-554.58286843,0.00013026,2]
[395098095,1764425437795,-1117.91553916,0.00013026,2]
[395098097,1764425437807,-1382.8095471,0.00013026,2]
[395098099,1764425437818,-15619.73589633,0.00013026,2]
[395098101,1764425437828,-4897.25569245,0.00013026,2]
[395098109,1764425437890,-5903.97401361,0.00013026,2]
[395098292,1764425439960,-181602.12847922,0.00013026,2]
[395098300,1764425440019,-272.33990001,0.00013026,2]
[395098302,1764425440030,-13146.03113357,0.00013026,2]
[395098603,1764425442743,-906.0,0.00013026,2]
[395098618,1764425442880,-785.4920936,0.00013026,2]
[395099710,1764425815850,-176.0,0.00021918,120]
[395099711,1764425816617,-324.0,0.00021918,120]
[395099716,1764425953310,300.0,0.00014,10]
[395099718,1764426076780,-188.64227625,8.907e-05,2]
[395099720,1764426310253,-218.51465395,9.111e-05,2]
[395099790,1764426631820,-209.52731716,0.00011805,2]
[395099792,1764426631830,-580.36268284,0.0001182,2]
[395099794,1764426631841,-49.63731716,0.0001182,2]
[395099796,1764426631850,-990.0,0.0001182,2]
[395099798,1764426631859,-414.0,0.0001182,2]
[395099800,1764426631868,-300.0,0.00012328,2]
[395099802,1764426631878,-339.41,0.00012329,2]
[395099804,1764426631887,-282.85,0.00012329,2]
[395099806,1764426631897,-20.99246134,0.00012329,2]
[395099815,1764426631930,-214.70753866,0.00012329,2]
[395099819,1764426631939,-196.42,0.00012329,2]
[395099823,1764426631949,-196.42,0.00012329,2]
[395099827,1764426631958,-36.22386602,0.00012329,2]
[395099831,1764426631971,-749.48613398,0.00012329,2]
[395099834,1764426631981,-500.0,0.00012829,2]
[395099837,1764426631990,-605.62736892,0.00012829,2]
[395099840,1764426632000,-500.0,0.00012829,2]
[395099843,1764426632009,-500.0,0.00012829,2]
[395099846,1764426632019,-370.31018659,0.00012829,2]
[395099848,1764426632028,-500.0,0.00012829,2]
[395099850,1764426632038,-154.83203798,0.00012829,2]
[395099852,1764426632047,-579.59564112,0.00012829,2]
[395099854,1764426632056,-500.0,0.00012829,2]
[395099856,1764426632065,-500.0,0.00012829,2]
[395099858,1764426632075,-500.0,0.00012829,2]
[395099860,1764426632084,-500.0,0.00012829,2]
[395099862,1764426632093,-500.0,0.00012829,2]
[395099864,1764426632103,-345.50824664,0.00012829,2]
[395099866,1764426632112,-500.0,0.00012829,2]
[395099868,1764426632122,-500.0,0.00012829,2]
[395099870,1764426632131,-354.57587994,0.00012829,2]
[395099872,1764426632140,-500.0,0.00012829,2]
[395099874,1764426632149,-500.0,0.00012829,2]
[395099876,1764426632158,-496.36241738,0.00012829,2]
[395099878,1764426632169,-3.63758262,0.00012829,2]
[395099880,1764426632178,-432.1415155,0.00012829,2]
[395100088,1764426639978,-500.0,0.0001283,2]
[395100090,1764426639988,-500.0,0.0001283,2]
[395100091,1764426639997,-500.0,0.0001283,2]
[395100092,1764426640006,-314.58613783,0.0001283,2]
[395100094,1764426640016,-1368.35245987,0.00012831,2]
[395100097,1764426640040,-499.99509108,0.00012831,2]
[395100099,1764426640050,-8719.02077169,0.00012831,2]
[395100101,1764426640061,-272.71,0.00012831,2]
[395100102,1764426640072,-263.47373267,0.00012831,2]
[395100104,1764426640102,-1563.20365362,0.00012831,2]
[395100107,1764426643920,-17459.16382567,0.00012831,2]
[395100108,1764426643932,-18578.79232766,0.00012831,2]
[395100109,1764426644123,-3846.45288983,0.00012831,2]
[395100110,1764426644137,-990.03061305,0.00012831,2]
[395100111,1764426644157,-841.34412303,0.00012831,2]
[395100119,1764426646074,-2265.9225486,0.00012831,2]
[395100120,1764426646086,-41307.12038512,0.00012831,2]
[395100122,1764426906296,177.0,0.00021239,120]
[395100123,1764426929352,171.0,0.00019958,120]
[395100124,1764427205373,195.0,0.00021067,120]
[395100125,1764427269485,159.83,0.000208,120]
[395100126,1764427419979,207.95151904,0.0001077,2]
[395100127,1764427428393,207.95151904,0.0001077,2]
[395100128,1764427437161,207.95151904,0.0001077,2]
[395100129,1764427444660,214.33677082,0.00010825,2]
[395100130,1764427453501,214.33677082,0.00010825,2]
[395100131,1764427461591,214.33677082,0.00010825,2]
[395100132,1764427470200,214.33677082,0.00010825,2]
[395100133,1764427486234,214.33677082,0.00010825,2]
[395100134,1764427494145,214.33677082,0.00010825,2]
[395100135,1764427516512,214.33677082,0.00010825,2]
[395100136,1764427540929,214.33677082,0.00010825,2]
[395100137,1764427570908,214.33677082,0.00010825,2]
[395100139,1764427594710,214.33677082,0.00010825,2]
[395100140,1764427617111,214.33677082,0.00010825,2]
[395100166,1764427832167,-214.33677082,0.00011273,2]
[395100168,1764427832176,-216.2634545,0.00011611,2]
[395100170,1764427832186,-414.0,0.00011909,2]
[395100171,1764427832195,-189.0195608,0.00012074,2]
[395100172,1764427832204,-187.78006525,0.00012723,2]
[395100173,1764427832214,-300.0,0.00012728,2]
[395100174,1764427832223,-149.12771544,0.00012728,2]
[395100215,1764427838237,-214.33677082,0.00011048,2]
[395100216,1764427838249,-150.87228456,0.00012728,2]
[395100217,1764427838259,-300.0,0.00012728,2]
[395100218,1764427838270,-87.52720168,0.00012729,2]
[395100219,1764427838543,-806.47279832,0.00012729,2]
[395100220,1764427838553,-1200.0,0.00012729,2]
[395100221,1764427838562,-4597.56542139,0.00012729,2]
[395100222,1764427838571,-500.0,0.0001273,2]
[395100223,1764427838580,-500.0,0.0001273,2]
[395100224,1764427838589,-270.21029648,0.0001273,2]
[395100225,1764427838598,-500.0,0.0001273,2]
[395100226,1764427838607,-261.61954221,0.0001273,2]
[395100227,1764427838616,-500.0,0.0001273,2]
[395100228,1764427838625,-500.0,0.0001273,2]
[395100229,1764427838635,-500.0,0.0001273,2]
[395100230,1764427838644,-500.0,0.0001273,2]
[395100231,1764427838653,-500.0,0.0001273,2]
[395100232,1764427838663,-500.0,0.0001273,2]
[395100239,1764427838672,-500.0,0.0001273,2]
[395100241,1764427838943,-500.0,0.0001273,2]
[395100242,1764427838959,-595.62346071,0.0001273,2]
[395100243,1764427838969,-500.0,0.0001273,2]
[395100244,1764427838978,-26549.07670724,0.00012731,2]
[395100275,1764427844146,-150.0,0.00011909,2]
[395100277,1764427844156,-23667.0614023,0.00012731,2]
[395100279,1764427844167,-439.31,0.00012731,2]
[395100286,1764427844220,-197878.47213923,0.00012731,2]
[395100288,1764427844231,-572.39107325,0.00012731,2]
[395100290,1764427844242,-3079.28350416,0.00012731,2]
[395100312,1764427844452,-291566.44720769,0.00012731,2]
[395100514,1764427846273,-21914.43174807,0.00012731,2]
[395102676,1764428105726,161.0,0.00020392,120]
[395102677,1764428129663,171.0,0.00019179,120]
[395102681,1764428781283,631.42598626,0.00010791,2]
[395102682,1764428785779,665.69254267,0.00010782,2]
[395102683,1764428807567,665.69254267,0.00010782,2]
[395102684,1764428823230,665.69254267,0.00010782,2]
[395102685,1764428845177,665.69254267,0.00010782,2]
[395102686,1764428853111,-631.42598626,0.00010891,2]
[395102687,1764428980796,217.47206117,0.00010783,2]
[395102688,1764429003220,217.47206117,0.00010783,2]
[395102689,1764429025483,217.47206117,0.00010783,2]
[395103030,1764429046647,-217.47206117,0.00010892,2]
[395103031,1764429046656,-217.47206117,0.00011002,2]
[395103032,1764429046666,-665.69254267,0.00011112,2]
[395103033,1764429046675,-206.72287899,0.0001169,2]
[395103034,1764429046685,-150.0,0.00011909,2]
[395103035,1764429046694,-193.39948841,0.00012189,2]
[395103036,1764429046703,-187.78006525,0.00012623,2]
[395103037,1764429046714,-300.0,0.00012629,2]
[395103038,1764429046723,-259.0,0.00012629,2]
[395103039,1764429046732,-300.0,0.00012629,2]
[395103040,1764429046741,-328.0,0.00012629,2]
[395103041,1764429046750,-500.0,0.0001263,2]
[395103042,1764429046759,-389.14720754,0.0001263,2]
[395103043,1764429046768,-621.73594008,0.0001263,2]
[395103044,1764429046777,-163.896,0.0001263,2]
[395103045,1764429046786,-103781.13878891,0.00012631,2]
[395103046,1764429048230,217.47206117,0.00010783,2]
[395103052,1764429297238,196.28199511,9.111e-05,2]
[395103057,1764429841171,797.2755804,0.00010736,2]
[395103058,1764429863959,797.2755804,0.00010736,2]
[395103059,1764429886536,797.2755804,0.00010736,2]
[395103060,1764429908583,797.2755804,0.00010736,2]
[395103061,1764429931016,797.2755804,0.00010736,2]
[395103062,1764429953537,797.2755804,0.00010736,2]
[395103063,1764429976473,797.2755804,0.00010736,2]
[395103064,1764429998174,797.2755804,0.00010736,2]
[395103065,1764430021051,797.2755804,0.00010736,2]
[395103066,1764430037347,797.2755804,0.00010736,2]
[395103068,1764430052112,-213.12261994,0.00010928,2]
[395103069,1764430052134,-213.12261994,0.00011039,2]
[395103070,1764430052153,-663.54125578,0.00011636,2]
[395103137,1764430238658,-133.73432462,0.00011636,2]
[395103139,1764430238670,-208.86016755,0.00011724,2]
[395103142,1764430238681,-158.30714162,0.00011813,2]
[395103144,1764430238692,-414.0,0.00012009,2]
[395103146,1764430238703,-187.78006525,0.00012523,2]
[395103148,1764430238715,-622.40304527,0.0001253,2]
[395103150,1764430238726,-300.0,0.0001253,2]
[395103153,1764430238737,-890000.0,0.00012531,2]
[395103155,1764430238748,-728.4531,0.00012533,2]
[395103157,1764430238759,-301.6770173,0.000126,2]
[395103159,1764430238770,-333.0,0.00012631,2]
[395103161,1764430238781,-5888.0,0.00012655,2]
[395103164,1764430238793,-5888.0,0.00012706,2]
[395103166,1764430238804,-768.9157597,0.0001271,2]
[395103167,1764430238815,-5888.0,0.00012729,2]
[395103168,1764430238826,-30374.5334806,0.00012741,2]
[395103169,1764430238837,-496.8927276,0.00012741,2]
[395103170,1764430238849,-5888.0,0.0001275,2]
[395103171,1764430238863,-5888.0,0.00012787,2]
[395103172,1764430238875,-5888.0,0.00012928,2]
[395103173,1764430238887,-5888.0,0.00012934,2]
[395103174,1764430238899,-500.0,0.00012934,2]
[395103175,1764430238911,-151.0,0.00012934,2]
[395103176,1764430238921,-151.0,0.00012934,2]
[395103177,1764430238932,-152.683969,0.00012934,2]
[395103178,1764430238944,-151.0,0.00012934,2]
[395103179,1764430238955,-151.0,0.00012934,2]
[395103180,1764430238966,-151.0,0.00012934,2]
[395103181,1764430238977,-151.0,0.00012934,2]
[395103182,1764430238988,-151.0,0.00012934,2]
[395103183,1764430238999,-298.615588,0.00012934,2]
[395103184,1764430239011,-151.0,0.00012934,2]
[395103185,1764430239022,-151.0,0.00012934,2]
[395103186,1764430239034,-151.0,0.00012934,2]
[395103187,1764430239044,-151.0,0.00012934,2]
[395103188,1764430239056,-151.0,0.00012934,2]
[395103189,1764430239068,-151.0,0.00012934,2]
[395103190,1764430239078,-151.0,0.00012934,2]
[395103191,1764430239089,-151.0,0.00012934,2]
[395103192,1764430239101,-200.027768,0.00012934,2]
[395103193,1764430239113,-200.027768,0.00012934,2]
[395103194,1764430239123,-200.027768,0.00012934,2]
[395103195,1764430239135,-200.027768,0.00012934,2]
[395103196,1764430239146,-354.883504,0.00012934,2]
[395103197,1764430239157,-354.883504,0.00012934,2]
[395103198,1764430239169,-354.883504,0.00012934,2]
[395103199,1764430239180,-354.883504,0.00012934,2]
[395103200,1764430239192,-2205.141078,0.00012934,2]
[395103201,1764430239203,-2205.141078,0.00012934,2]
[395103202,1764430239214,-2205.141078,0.00012934,2]
[395103203,1764430239225,-437.413393,0.00012934,2]
[395103204,1764430239235,-2205.141078,0.00012934,2]
[395103205,1764430239246,-437.413393,0.00012934,2]
[395103206,1764430239257,-437.413393,0.00012934,2]
[395103207,1764430239268,-437.413393,0.00012934,2]
[395103208,1764430239279,-151.0,0.00012934,2]
[395103209,1764430239290,-151.0,0.00012934,2]
[395103210,1764430239301,-151.0,0.00012934,2]
[395103211,1764430239312,-151.0,0.00012934,2]
[395103212,1764430239325,-151.0,0.00012934,2]
[395103213,1764430239337,-151.0,0.00012934,2]
[395103214,1764430239349,-151.0,0.00012934,2]
[395103215,1764430239362,-151.0,0.00012934,2]
[395103216,1764430239375,-238.366862,0.00012934,2]
[395103217,1764430239387,-238.366862,0.00012934,2]
[395103218,1764430239400,-238.366862,0.00012934,2]
[395103219,1764430239414,-238.366862,0.00012934,2]
[395103220,1764430239427,-151.0,0.00012934,2]
[395103221,1764430239440,-151.0,0.00012934,2]
[395103222,1764430239453,-151.0,0.00012934,2]
[395103223,1764430239465,-177.152149,0.00012934,2]
[395103224,1764430239476,-177.152149,0.00012934,2]
[395103225,1764430239489,-177.152149,0.00012934,2]
[395103226,1764430239500,-151.0,0.00012934,2]
[395103227,1764430239512,-177.152149,0.00012934,2]
[395103228,1764430239522,-151.0,0.00012934,2]
[395103229,1764430239531,-215.427336,0.00012934,2]
[395103230,1764430239541,-215.427336,0.00012934,2]
[395103231,1764430239550,-215.427336,0.00012934,2]
[395103232,1764430239559,-215.427336,0.00012934,2]
[395103233,1764430239569,-151.0,0.00012934,2]
[395103234,1764430239579,-151.0,0.00012934,2]
[395103235,1764430239588,-151.0,0.00012934,2]
[395103236,1764430239598,-1976.543605,0.00012934,2]
[395103237,1764430239854,-1976.543605,0.00012934,2]
[395103238,1764430239879,-1976.543605,0.00012934,2]
[395103239,1764430239889,-1976.543605,0.00012934,2]
[395103240,1764430239899,-445.62611,0.00012934,2]
[395103241,1764430239908,-445.62611,0.00012934,2]
[395103242,1764430239917,-445.62611,0.00012934,2]
[395103243,1764430239926,-151.0,0.00012934,2]
[395103244,1764430239936,-445.62611,0.00012934,2]
[395103245,1764430239944,-314.498147,0.00012934,2]
[395103246,1764430239953,-314.498147,0.00012934,2]